[Event "*** SCC Grand Prix: Titled Tuesday Blitz"]
[Site "Chess.com"]
[Date "2020.06.09"]
[Round "6"]
[White "eightbyeightchess"]
[Black "Mbneu"]
[Result "1-0"]
[WhiteElo "2387"]
[BlackElo "2221"]
[TimeControl "180+1"]
[EndTime "10:07:01 PDT"]
[Termination "eightbyeightchess won by resignation"]

1. e4 {[%clk 0:03:00.9]} 1... c5 {[%clk 0:02:58.2]} 2. Nf3 {[%clk 0:03:00.8]}
2... Nf6 {[%clk 0:02:58.7]} 3. d4 {[%clk 0:03:01.6]} 3... Nxe4 {[%clk
0:02:58.1]} 4. Bd3 {[%clk 0:03:00.5]} 4... d5 {[%clk 0:02:57.4]} 5. O-O {[%clk
0:02:57]} 5... cxd4 {[%clk 0:02:54.7]} 6. Nxd4 {[%clk 0:02:55.9]} 6... e5 {[%clk
0:02:41.5]} 7. Nf3 {[%clk 0:02:55.3]} 7... Nc6 {[%clk 0:02:40.2]} 8. c4 {[%clk
0:02:48]} 8... Bg4 {[%clk 0:02:10.9]} 9. h3 {[%clk 0:02:29.8]} 9... Bxf3 {[%clk
0:02:05.1]} 10. Qxf3 {[%clk 0:02:30.7]} 10... Nd4 {[%clk 0:02:04.1]} 11. Qd1
{[%clk 0:02:27.6]} 11... Nc5 {[%clk 0:01:30.4]} 12. cxd5 {[%clk 0:02:23.7]}
12... Nxd3 {[%clk 0:01:27.3]} 13. Qxd3 {[%clk 0:02:24.6]} 13... Bd6 {[%clk
0:01:19.3]} 14. Be3 {[%clk 0:01:51.3]} 14... O-O {[%clk 0:01:15.7]} 15. Bxd4
{[%clk 0:01:50.7]} 15... exd4 {[%clk 0:01:14.8]} 16. Qxd4 {[%clk 0:01:49.9]}
16... Re8 {[%clk 0:01:08.5]} 17. Nc3 {[%clk 0:01:49.9]} 17... Be5 {[%clk
0:01:07.1]} 18. Qd3 {[%clk 0:01:50.1]} 18... Qh4 {[%clk 0:00:52.4]} 19. Rfe1
{[%clk 0:01:34.3]} 19... Rad8 {[%clk 0:00:48.5]} 20. Re4 {[%clk 0:01:28.3]}
20... Qf6 {[%clk 0:00:24.3]} 21. Rae1 {[%clk 0:01:26.9]} 21... Kf8 {[%clk
0:00:24.6]} 22. Qb5 {[%clk 0:01:00.2]} 22... Re7 {[%clk 0:00:20.4]} 23. f4
{[%clk 0:00:59.8]} 23... Bd6 {[%clk 0:00:20.2]} 24. Rxe7 {[%clk 0:00:46.6]}
24... Bxe7 {[%clk 0:00:21.1]} 25. Ne4 {[%clk 0:00:21]} 25... Qd4+ {[%clk
0:00:20.2]} 26. Kh1 {[%clk 0:00:19.3]} 26... Qxd5 {[%clk 0:00:20.3]} 27. Qxd5
{[%clk 0:00:18.6]} 27... Rxd5 {[%clk 0:00:20.2]} 28. Rc1 {[%clk 0:00:19.5]}
28... Ke8 {[%clk 0:00:19]} 29. Rc7 {[%clk 0:00:18.6]} 29... Rd1+ {[%clk
0:00:17.7]} 30. Kh2 {[%clk 0:00:18.7]} 30... Re1 {[%clk 0:00:17.8]} 31. Nc3
{[%clk 0:00:17]} 31... Bd6 {[%clk 0:00:17.9]} 32. Rxb7 {[%clk 0:00:17]} 32...
Bxf4+ {[%clk 0:00:17.4]} 33. g3 {[%clk 0:00:15.9]} 33... Be5 {[%clk 0:00:16.9]}
34. Rxa7 {[%clk 0:00:15]} 34... Rc1 {[%clk 0:00:15.2]} 35. h4 {[%clk 0:00:12.1]}
35... Rc2+ {[%clk 0:00:15.4]} 36. Kh3 {[%clk 0:00:12.3]} 36... Rxb2 {[%clk
0:00:16]} 37. Nd5 {[%clk 0:00:12.2]} 37... Rb5 {[%clk 0:00:15.1]} 38. Re7+
{[%clk 0:00:11.9]} 38... Kf8 {[%clk 0:00:10.7]} 39. Rxe5 {[%clk 0:00:12.8]}
39... f6 {[%clk 0:00:10.9]} 40. Nxf6 {[%clk 0:00:12.6]} 40... Rxe5 {[%clk
0:00:09.6]} 41. Nd7+ {[%clk 0:00:12.8]} 41... Ke7 {[%clk 0:00:09.7]} 42. Nxe5
{[%clk 0:00:13.7]} 1-0

[Event "*** SCC Grand Prix: Titled Tuesday Blitz"]
[Site "Chess.com"]
[Date "2020.06.09"]
[Round "6"]
[White "elohunter1999"]
[Black "TomsKantans"]
[Result "1-0"]
[WhiteElo "2493"]
[BlackElo "2622"]
[TimeControl "180+1"]
[EndTime "10:07:03 PDT"]
[Termination "elohunter1999 won on time"]

1. e4 {[%clk 0:03:00.9]} 1... c5 {[%clk 0:02:58.2]} 2. Nf3 {[%clk 0:02:59.6]}
2... Nf6 {[%clk 0:02:58.8]} 3. Nc3 {[%clk 0:02:56.8]} 3... Nc6 {[%clk
0:02:58.9]} 4. d4 {[%clk 0:02:42]} 4... d5 {[%clk 0:02:58.6]} 5. exd5 {[%clk
0:02:32.3]} 5... Nxd5 {[%clk 0:02:59.5]} 6. Bb5 {[%clk 0:02:24.1]} 6... Nxc3
{[%clk 0:02:59.1]} 7. bxc3 {[%clk 0:02:23.6]} 7... cxd4 {[%clk 0:02:58.7]} 8.
O-O {[%clk 0:02:18.8]} 8... Qd5 {[%clk 0:02:41.7]} 9. Rb1 {[%clk 0:02:14.4]}
9... Bg4 {[%clk 0:02:35.1]} 10. cxd4 {[%clk 0:01:58.1]} 10... Bxf3 {[%clk
0:02:19.9]} 11. Qxf3 {[%clk 0:01:57.9]} 11... Qxf3 {[%clk 0:02:20.1]} 12. gxf3
{[%clk 0:01:58.8]} 12... O-O-O {[%clk 0:02:19.5]} 13. c3 {[%clk 0:01:53.8]}
13... e6 {[%clk 0:02:14.6]} 14. Bxc6 {[%clk 0:01:45.7]} 14... bxc6 {[%clk
0:02:14.5]} 15. Bf4 {[%clk 0:01:46.6]} 15... Bd6 {[%clk 0:02:09.6]} 16. Bxd6
{[%clk 0:01:46.3]} 16... Rxd6 {[%clk 0:02:10.5]} 17. Rb4 {[%clk 0:01:43.6]}
17... Rd5 {[%clk 0:00:31.6]} 18. Rfb1 {[%clk 0:01:40.6]} 18... Rb5 {[%clk
0:00:24.3]} 19. Rxb5 {[%clk 0:01:36.4]} 19... cxb5 {[%clk 0:00:25.2]} 20. Rxb5
{[%clk 0:01:36.9]} 20... Kc7 {[%clk 0:00:26.1]} 21. Rc5+ {[%clk 0:01:33.7]}
21... Kb6 {[%clk 0:00:23.3]} 22. Kf1 {[%clk 0:01:31.1]} 22... Rd8 {[%clk
0:00:16.5]} 23. Ke2 {[%clk 0:01:29.3]} 23... Rd6 {[%clk 0:00:11.8]} 24. Kd3
{[%clk 0:01:21.3]} 24... Kb7 {[%clk 0:00:10.7]} 25. a4 {[%clk 0:01:18.6]} 25...
g6 {[%clk 0:00:03.6]} 26. a5 {[%clk 0:01:11.4]} 26... f6 {[%clk 0:00:03.3]} 27.
f4 {[%clk 0:01:10.5]} 27... Ra6 {[%clk 0:00:01.7]} 28. Kc4 {[%clk 0:01:09.6]}
28... Rd6 {[%clk 0:00:02.2]} 29. h4 {[%clk 0:00:56.2]} 29... Rd8 {[%clk
0:00:01.8]} 30. h5 {[%clk 0:00:54.4]} 30... Rd7 {[%clk 0:00:01.8]} 31. h6 {[%clk
0:00:51]} 31... Rf7 {[%clk 0:00:02]} 32. d5 {[%clk 0:00:44.3]} 32... exd5+
{[%clk 0:00:02.3]} 33. Kxd5 {[%clk 0:00:44.5]} 33... Re7 {[%clk 0:00:02.7]} 34.
Kd6 {[%clk 0:00:37.5]} 34... Re4 {[%clk 0:00:02.8]} 35. Rc7+ {[%clk 0:00:36.1]}
35... Ka6 {[%clk 0:00:03.3]} 36. Rxh7 {[%clk 0:00:36.6]} 36... Rxf4 {[%clk
0:00:04.2]} 37. Rg7 {[%clk 0:00:33.1]} 37... g5 {[%clk 0:00:04.6]} 38. h7 {[%clk
0:00:32.6]} 38... Rh4 {[%clk 0:00:04.8]} 39. Ke6 {[%clk 0:00:32.6]} 39... Kxa5
{[%clk 0:00:03.5]} 40. Rxa7+ {[%clk 0:00:31.9]} 40... Kb5 {[%clk 0:00:03.7]} 41.
Rf7 {[%clk 0:00:29]} 41... Kc4 {[%clk 0:00:03.3]} 42. Kxf6 {[%clk 0:00:29.1]}
42... g4 {[%clk 0:00:03.1]} 43. Kg5 {[%clk 0:00:28.5]} 43... Rh2 {[%clk
0:00:02.8]} 44. Kxg4 {[%clk 0:00:28.6]} 44... Kxc3 {[%clk 0:00:03]} 45. Rf3+
{[%clk 0:00:28.6]} 45... Kd4 {[%clk 0:00:03.1]} 46. Rh3 {[%clk 0:00:29.5]} 1-0

[Event "*** SCC Grand Prix: Titled Tuesday Blitz"]
[Site "Chess.com"]
[Date "2020.06.09"]
[Round "6"]
[White "ftorodent"]
[Black "RaunakSadhwani2005"]
[Result "0-1"]
[WhiteElo "2664"]
[BlackElo "2898"]
[TimeControl "180+1"]
[EndTime "10:07:04 PDT"]
[Termination "RaunakSadhwani2005 won by resignation"]

1. d4 {[%clk 0:03:00.9]} 1... Nf6 {[%clk 0:02:59.9]} 2. c4 {[%clk 0:03:00.5]}
2... g6 {[%clk 0:03:00.3]} 3. Nc3 {[%clk 0:02:58.2]} 3... Bg7 {[%clk 0:03:00.7]}
4. Nf3 {[%clk 0:02:58]} 4... O-O {[%clk 0:03:00.7]} 5. e4 {[%clk 0:02:57.9]}
5... d6 {[%clk 0:03:00.8]} 6. Be2 {[%clk 0:02:58.1]} 6... Qe8 {[%clk 0:02:59.7]}
7. O-O {[%clk 0:02:54.4]} 7... e5 {[%clk 0:02:59.4]} 8. dxe5 {[%clk 0:02:41.3]}
8... dxe5 {[%clk 0:02:59.1]} 9. Nd5 {[%clk 0:02:41.8]} 9... Na6 {[%clk
0:02:46.8]} 10. Nxf6+ {[%clk 0:02:39.9]} 10... Bxf6 {[%clk 0:02:47.7]} 11. Be3
{[%clk 0:02:40.1]} 11... Qe7 {[%clk 0:02:37.7]} 12. Qc2 {[%clk 0:02:22.1]} 12...
Nc5 {[%clk 0:02:33.2]} 13. Rfd1 {[%clk 0:02:17.6]} 13... Bg4 {[%clk 0:02:27.4]}
14. Rd5 {[%clk 0:02:10.9]} 14... Ne6 {[%clk 0:02:14.8]} 15. Nxe5 {[%clk
0:01:56.9]} 15... Bxe2 {[%clk 0:02:13.2]} 16. Qxe2 {[%clk 0:01:57]} 16... c6
{[%clk 0:02:13.4]} 17. Rd7 {[%clk 0:01:57]} 17... Qe8 {[%clk 0:02:13.4]} 18. Ng4
{[%clk 0:01:56.9]} 18... Bg7 {[%clk 0:02:13.7]} 19. Rxb7 {[%clk 0:01:54.9]}
19... h5 {[%clk 0:02:13.1]} 20. Nh6+ {[%clk 0:01:31.8]} 20... Kh7 {[%clk
0:02:12.2]} 21. f4 {[%clk 0:01:17.4]} 21... Bxh6 {[%clk 0:02:01.8]} 22. f5
{[%clk 0:01:17.5]} 22... Bxe3+ {[%clk 0:01:36.4]} 23. Qxe3 {[%clk 0:01:17]}
23... Ng7 {[%clk 0:01:36.9]} 24. f6 {[%clk 0:00:57]} 24... Ne6 {[%clk 0:01:29]}
25. Rd1 {[%clk 0:00:39.4]} 25... Rd8 {[%clk 0:01:27.4]} 26. Rd2 {[%clk
0:00:39.3]} 26... a6 {[%clk 0:00:49.4]} 27. h3 {[%clk 0:00:36.9]} 27... Rxd2
{[%clk 0:00:42.2]} 28. Qxd2 {[%clk 0:00:36.8]} 28... Qc8 {[%clk 0:00:26.3]} 29.
Re7 {[%clk 0:00:31.6]} 29... Qd8 {[%clk 0:00:20.1]} 30. Qxd8 {[%clk 0:00:25.8]}
30... Nxd8 {[%clk 0:00:21]} 31. Kf2 {[%clk 0:00:21.4]} 31... g5 {[%clk
0:00:21.3]} 32. Ke3 {[%clk 0:00:19.7]} 32... Kg6 {[%clk 0:00:21.8]} 33. e5
{[%clk 0:00:19.9]} 33... Ne6 {[%clk 0:00:20.1]} 34. Ra7 {[%clk 0:00:19.9]} 34...
Kf5 {[%clk 0:00:20.2]} 35. Rxa6 {[%clk 0:00:19.5]} 35... c5 {[%clk 0:00:20.7]}
36. a3 {[%clk 0:00:18.5]} 36... Rb8 {[%clk 0:00:17.8]} 37. Ra7 {[%clk
0:00:12.5]} 37... Rb3+ {[%clk 0:00:17.6]} 38. Kd2 {[%clk 0:00:10.5]} 38... Rxb2+
{[%clk 0:00:18.5]} 39. Kc3 {[%clk 0:00:10.9]} 39... Rxg2 {[%clk 0:00:19]} 40.
Rxf7 {[%clk 0:00:11.5]} 40... Kxe5 {[%clk 0:00:18]} 41. Rh7 {[%clk 0:00:11.5]}
41... Rg3+ {[%clk 0:00:15.4]} 42. Kb2 {[%clk 0:00:11.6]} 42... Rxh3 {[%clk
0:00:15.4]} 43. f7 {[%clk 0:00:11.9]} 43... h4 {[%clk 0:00:14.7]} 0-1

[Event "*** SCC Grand Prix: Titled Tuesday Blitz"]
[Site "Chess.com"]
[Date "2020.06.09"]
[Round "6"]
[White "ChessyInstinct"]
[Black "picturesquecheck"]
[Result "1-0"]
[WhiteElo "2398"]
[BlackElo "2121"]
[TimeControl "180+1"]
[EndTime "10:07:06 PDT"]
[Termination "ChessyInstinct won by checkmate"]

1. d4 {[%clk 0:03:00.9]} 1... Nf6 {[%clk 0:02:58.8]} 2. c4 {[%clk 0:03:01.5]}
2... e6 {[%clk 0:02:57]} 3. g3 {[%clk 0:03:01.4]} 3... d5 {[%clk 0:02:56.6]} 4.
Nf3 {[%clk 0:03:01.7]} 4... Bb4+ {[%clk 0:02:54.9]} 5. Bd2 {[%clk 0:03:01.8]}
5... Be7 {[%clk 0:02:52.2]} 6. Bg2 {[%clk 0:03:00.7]} 6... O-O {[%clk
0:02:50.4]} 7. Qc2 {[%clk 0:02:59.9]} 7... b6 {[%clk 0:02:50.5]} 8. O-O {[%clk
0:02:53.9]} 8... Bb7 {[%clk 0:02:50.1]} 9. Nc3 {[%clk 0:02:49.1]} 9... Nbd7
{[%clk 0:02:46.4]} 10. cxd5 {[%clk 0:02:44.7]} 10... exd5 {[%clk 0:02:43.7]} 11.
Rad1 {[%clk 0:02:40.5]} 11... Rc8 {[%clk 0:02:43.5]} 12. Bf4 {[%clk 0:02:31.4]}
12... c5 {[%clk 0:02:30.6]} 13. Qf5 {[%clk 0:02:08.6]} 13... g6 {[%clk
0:02:26.8]} 14. Qb1 {[%clk 0:02:07.9]} 14... c4 {[%clk 0:02:09.6]} 15. Ne5
{[%clk 0:01:54.1]} 15... a6 {[%clk 0:02:06.6]} 16. e4 {[%clk 0:01:43.6]} 16...
dxe4 {[%clk 0:02:03.2]} 17. d5 {[%clk 0:01:44]} 17... Nxe5 {[%clk 0:01:52]} 18.
Bxe5 {[%clk 0:01:44.9]} 18... Bd6 {[%clk 0:01:47.5]} 19. Bxf6 {[%clk 0:01:06.9]}
19... Qxf6 {[%clk 0:01:46]} 20. Nxe4 {[%clk 0:01:07.8]} 20... Qd8 {[%clk
0:01:45.3]} 21. Qc1 {[%clk 0:01:07.1]} 21... b5 {[%clk 0:01:42.5]} 22. Qh6
{[%clk 0:01:05.1]} 22... f6 {[%clk 0:01:29.7]} 23. Bh3 {[%clk 0:00:57.5]} 23...
Rc7 {[%clk 0:01:22.5]} 24. Be6+ {[%clk 0:00:54.2]} 24... Kh8 {[%clk 0:01:22.4]}
25. h4 {[%clk 0:00:42.2]} 25... Re8 {[%clk 0:00:58.9]} 26. Rfe1 {[%clk
0:00:15.7]} 26... Bf8 {[%clk 0:00:54.8]} 27. Qf4 {[%clk 0:00:13.4]} 27... f5
{[%clk 0:00:51.3]} 28. Ng5 {[%clk 0:00:11.8]} 28... Bg7 {[%clk 0:00:35.5]} 29.
Nf7+ {[%clk 0:00:08.6]} 29... Rxf7 {[%clk 0:00:34.7]} 30. Bxf7 {[%clk
0:00:09.5]} 30... Rf8 {[%clk 0:00:29.8]} 31. Be6 {[%clk 0:00:09.4]} 31... Bxb2
{[%clk 0:00:23.7]} 32. d6 {[%clk 0:00:03.3]} 32... Bg7 {[%clk 0:00:17.7]} 33.
Bd5 {[%clk 0:00:03.6]} 33... Bc8 {[%clk 0:00:16]} 34. Re7 {[%clk 0:00:02.8]}
34... Bf6 {[%clk 0:00:15.4]} 35. Ra7 {[%clk 0:00:02.3]} 35... c3 {[%clk
0:00:12.7]} 36. Bb3 {[%clk 0:00:02.2]} 36... Bd7 {[%clk 0:00:11.4]} 37. Qh6
{[%clk 0:00:02.3]} 37... Bg7 {[%clk 0:00:10.4]} 38. Qe3 {[%clk 0:00:03]} 38...
Bc6 {[%clk 0:00:10.6]} 39. Qe7 {[%clk 0:00:03.1]} 39... Bf3 {[%clk 0:00:08.8]}
40. Qxg7# {[%clk 0:00:02.7]} 1-0

[Event "*** SCC Grand Prix: Titled Tuesday Blitz"]
[Site "Chess.com"]
[Date "2020.06.09"]
[Round "6"]
[White "Vision_64"]
[Black "DanielTitichoca"]
[Result "1-0"]
[WhiteElo "2158"]
[BlackElo "2328"]
[TimeControl "180+1"]
[EndTime "10:07:07 PDT"]
[Termination "Vision_64 won by checkmate"]

1. e4 {[%clk 0:03:00.9]} 1... g6 {[%clk 0:02:59.4]} 2. d4 {[%clk 0:02:59.7]}
2... Bg7 {[%clk 0:03:00.3]} 3. Nc3 {[%clk 0:02:59.3]} 3... d6 {[%clk 0:03:01.2]}
4. Be3 {[%clk 0:02:58.8]} 4... a6 {[%clk 0:03:02.1]} 5. Qd2 {[%clk 0:02:58.8]}
5... Nd7 {[%clk 0:03:00.8]} 6. f3 {[%clk 0:02:57.7]} 6... b5 {[%clk 0:03:01.1]}
7. Nge2 {[%clk 0:02:52]} 7... Bb7 {[%clk 0:03:01.2]} 8. O-O-O {[%clk 0:02:42.6]}
8... b4 {[%clk 0:02:58.1]} 9. Na4 {[%clk 0:02:32.3]} 9... Rb8 {[%clk 0:02:50.6]}
10. b3 {[%clk 0:02:25.8]} 10... Bc6 {[%clk 0:02:44.2]} 11. Nb2 {[%clk
0:02:25.4]} 11... Bb5 {[%clk 0:02:38.6]} 12. g4 {[%clk 0:02:18.6]} 12... c5
{[%clk 0:02:36.2]} 13. Ng3 {[%clk 0:02:01.4]} 13... Qa5 {[%clk 0:02:13]} 14. Kb1
{[%clk 0:01:56.3]} 14... h6 {[%clk 0:02:04.9]} 15. h4 {[%clk 0:01:40.9]} 15...
Ngf6 {[%clk 0:02:01.2]} 16. e5 {[%clk 0:01:26.8]} 16... dxe5 {[%clk 0:01:54.6]}
17. dxc5 {[%clk 0:01:26.3]} 17... e4 {[%clk 0:01:42.4]} 18. Bxb5 {[%clk
0:01:16.9]} 18... axb5 {[%clk 0:01:35.4]} 19. c6 {[%clk 0:01:07.5]} 19... O-O
{[%clk 0:01:31.5]} 20. cxd7 {[%clk 0:00:30.1]} 20... Ra8 {[%clk 0:01:22.5]} 21.
a4 {[%clk 0:00:30]} 21... bxa3 {[%clk 0:01:20.5]} 22. Qxa5 {[%clk 0:00:29.8]}
22... Rxa5 {[%clk 0:00:55.4]} 23. d8=Q {[%clk 0:00:30.1]} 23... Rxd8 {[%clk
0:00:49.2]} 24. Rxd8+ {[%clk 0:00:31]} 24... Kh7 {[%clk 0:00:49.8]} 25. Bd4
{[%clk 0:00:28.5]} 25... Nd5 {[%clk 0:00:41.3]} 26. Bxg7 {[%clk 0:00:22.9]}
26... a2+ {[%clk 0:00:40.1]} 27. Ka1 {[%clk 0:00:20.6]} 27... Nb4 {[%clk
0:00:40.5]} 28. Rc1 {[%clk 0:00:19]} 28... exf3 {[%clk 0:00:35.8]} 29. Bc3
{[%clk 0:00:17.9]} 29... f2 {[%clk 0:00:34]} 30. Bxb4 {[%clk 0:00:17.9]} 30...
Ra6 {[%clk 0:00:34.9]} 31. Nf1 {[%clk 0:00:17.7]} 31... f5 {[%clk 0:00:32]} 32.
gxf5 {[%clk 0:00:16.7]} 32... gxf5 {[%clk 0:00:32.9]} 33. Bc3 {[%clk 0:00:16.8]}
33... f4 {[%clk 0:00:33.8]} 34. Rh8+ {[%clk 0:00:16.3]} 34... Kg6 {[%clk
0:00:33.5]} 35. Nd2 {[%clk 0:00:15.7]} 35... Kf5 {[%clk 0:00:32.4]} 36. Nf3
{[%clk 0:00:15.7]} 36... e5 {[%clk 0:00:32.4]} 37. Nxe5 {[%clk 0:00:15.6]} 37...
Ke4 {[%clk 0:00:32.1]} 38. Ned3 {[%clk 0:00:15.3]} 38... Kf3 {[%clk 0:00:33]}
39. Rf1 {[%clk 0:00:14.7]} 39... Ke3 {[%clk 0:00:24.7]} 40. Rxf2 {[%clk
0:00:14.6]} 40... f3 {[%clk 0:00:25.6]} 41. Nd1+ {[%clk 0:00:13.9]} 41... Ke4
{[%clk 0:00:26.5]} 42. Re8+ {[%clk 0:00:13]} 42... Kd5 {[%clk 0:00:24.5]} 43.
Rxf3 {[%clk 0:00:13.4]} 43... h5 {[%clk 0:00:24]} 44. Rf5+ {[%clk 0:00:13.6]}
44... Kc6 {[%clk 0:00:23.5]} 45. Rf6+ {[%clk 0:00:14.1]} 45... Kd7 {[%clk
0:00:24.4]} 46. Rxa6 {[%clk 0:00:14.6]} 46... b4 {[%clk 0:00:24.4]} 47. Bxb4
{[%clk 0:00:14.3]} 47... Kc7 {[%clk 0:00:25.3]} 48. Kxa2 {[%clk 0:00:14.2]}
48... Kb7 {[%clk 0:00:26.2]} 49. Rg6 {[%clk 0:00:13.2]} 49... Kc7 {[%clk
0:00:27.1]} 50. Re7+ {[%clk 0:00:13.1]} 50... Kc8 {[%clk 0:00:27.1]} 51. Rg8#
{[%clk 0:00:13.8]} 1-0

[Event "*** SCC Grand Prix: Titled Tuesday Blitz"]
[Site "Chess.com"]
[Date "2020.06.09"]
[Round "6"]
[White "mbachez"]
[Black "Twitch_ElhamBlitz05"]
[Result "0-1"]
[WhiteElo "2528"]
[BlackElo "2738"]
[TimeControl "180+1"]
[EndTime "10:07:09 PDT"]
[Termination "Twitch_ElhamBlitz05 won by resignation"]

1. e4 {[%clk 0:03:00.9]} 1... c6 {[%clk 0:02:55.2]} 2. d4 {[%clk 0:02:59.4]}
2... d5 {[%clk 0:02:56.1]} 3. Nc3 {[%clk 0:02:59.4]} 3... dxe4 {[%clk
0:02:55.8]} 4. Nxe4 {[%clk 0:02:59.5]} 4... Nf6 {[%clk 0:02:56.7]} 5. Nxf6+
{[%clk 0:02:56.6]} 5... exf6 {[%clk 0:02:57.6]} 6. c3 {[%clk 0:02:50.6]} 6...
Bd6 {[%clk 0:02:55.6]} 7. Bd3 {[%clk 0:02:50.6]} 7... O-O {[%clk 0:02:55.3]} 8.
Qc2 {[%clk 0:02:50.8]} 8... Re8+ {[%clk 0:02:55.6]} 9. Ne2 {[%clk 0:02:50.9]}
9... h5 {[%clk 0:02:56.4]} 10. Be3 {[%clk 0:02:49.2]} 10... Be6 {[%clk
0:02:54.6]} 11. O-O {[%clk 0:02:44.6]} 11... h4 {[%clk 0:02:53.7]} 12. h3 {[%clk
0:02:43.3]} 12... Nd7 {[%clk 0:02:53.9]} 13. Bf4 {[%clk 0:02:40.2]} 13... Nf8
{[%clk 0:02:53.4]} 14. Rfe1 {[%clk 0:02:31.4]} 14... b5 {[%clk 0:02:52.1]} 15.
b3 {[%clk 0:02:12.7]} 15... Bd5 {[%clk 0:02:49.7]} 16. Bxd6 {[%clk 0:02:09]}
16... Qxd6 {[%clk 0:02:49.2]} 17. c4 {[%clk 0:02:09.2]} 17... bxc4 {[%clk
0:02:50.1]} 18. bxc4 {[%clk 0:02:08.9]} 18... Be6 {[%clk 0:02:50.2]} 19. Be4
{[%clk 0:02:07.6]} 19... Bxc4 {[%clk 0:02:41.9]} 20. Rac1 {[%clk 0:01:49.9]}
20... Bd5 {[%clk 0:02:38.9]} 21. Nc3 {[%clk 0:01:47.7]} 21... Bxe4 {[%clk
0:02:38]} 22. Nxe4 {[%clk 0:01:47.3]} 22... Qxd4 {[%clk 0:02:36.1]} 23. Qxc6
{[%clk 0:01:47.1]} 23... Qd7 {[%clk 0:01:34.2]} 24. Qxd7 {[%clk 0:00:53]} 24...
Nxd7 {[%clk 0:01:35.1]} 25. Nd6 {[%clk 0:00:53.1]} 25... Rxe1+ {[%clk
0:01:32.1]} 26. Rxe1 {[%clk 0:00:54]} 26... Ne5 {[%clk 0:01:32.2]} 27. f4 {[%clk
0:00:53.7]} 27... Nd3 {[%clk 0:01:28.6]} 28. Re7 {[%clk 0:00:48.9]} 28... Nxf4
{[%clk 0:01:26]} 29. Nxf7 {[%clk 0:00:48.8]} 29... Rc8 {[%clk 0:01:17.4]} 30.
Nd6 {[%clk 0:00:42.7]} 30... Rc2 {[%clk 0:01:16.7]} 31. Re4 {[%clk 0:00:36.7]}
31... Rxg2+ {[%clk 0:01:06]} 32. Kf1 {[%clk 0:00:36.4]} 32... Rd2 {[%clk
0:01:03.1]} 33. Rxf4 {[%clk 0:00:35.6]} 33... Rxd6 {[%clk 0:01:02.6]} 34. Rxh4
{[%clk 0:00:35.7]} 34... Rd2 {[%clk 0:00:58.3]} 35. Ra4 {[%clk 0:00:35]} 35...
Rh2 {[%clk 0:00:38.7]} 36. h4 {[%clk 0:00:33.6]} 36... Kh7 {[%clk 0:00:38.9]}
37. Kg1 {[%clk 0:00:33.9]} 37... Rd2 {[%clk 0:00:38.7]} 38. Rxa7 {[%clk
0:00:33.2]} 38... Rd4 {[%clk 0:00:38.1]} 39. a4 {[%clk 0:00:30.2]} 39... Rxh4
{[%clk 0:00:37.6]} 40. a5 {[%clk 0:00:29.9]} 40... Ra4 {[%clk 0:00:37.9]} 41.
Ra8 {[%clk 0:00:29.7]} 41... g5 {[%clk 0:00:36.6]} 42. Kg2 {[%clk 0:00:29.9]}
42... Kg7 {[%clk 0:00:34.4]} 43. a6 {[%clk 0:00:30]} 43... f5 {[%clk 0:00:34.3]}
44. Kg3 {[%clk 0:00:29.8]} 44... Ra3+ {[%clk 0:00:34.3]} 45. Kf2 {[%clk
0:00:29.6]} 45... f4 {[%clk 0:00:35.2]} 46. Ke2 {[%clk 0:00:26.1]} 46... g4
{[%clk 0:00:33.7]} 47. Kd2 {[%clk 0:00:17.1]} 47... g3 {[%clk 0:00:33.1]} 48.
Kc2 {[%clk 0:00:14.8]} 48... g2 {[%clk 0:00:31.5]} 0-1

[Event "*** SCC Grand Prix: Titled Tuesday Blitz"]
[Site "Chess.com"]
[Date "2020.06.09"]
[Round "6"]
[White "manmanlai1"]
[Black "AlexOstrovskiy"]
[Result "0-1"]
[WhiteElo "2394"]
[BlackElo "2591"]
[TimeControl "180+1"]
[EndTime "10:07:09 PDT"]
[Termination "AlexOstrovskiy won by resignation"]

1. e4 {[%clk 0:01:30.4]} 1... c6 {[%clk 0:02:58.7]} 2. d4 {[%clk 0:01:29.6]}
2... d5 {[%clk 0:02:59.6]} 3. exd5 {[%clk 0:01:30.5]} 3... cxd5 {[%clk
0:03:00.5]} 4. Bd3 {[%clk 0:01:30.2]} 4... Nc6 {[%clk 0:03:00]} 5. c3 {[%clk
0:01:30.5]} 5... Nf6 {[%clk 0:02:55.2]} 6. Bf4 {[%clk 0:01:30.5]} 6... Bg4
{[%clk 0:02:54.8]} 7. Nf3 {[%clk 0:01:30.8]} 7... e6 {[%clk 0:02:54.6]} 8. Nbd2
{[%clk 0:01:31.3]} 8... Bd6 {[%clk 0:02:53.5]} 9. Bxd6 {[%clk 0:01:31.9]} 9...
Qxd6 {[%clk 0:02:54.4]} 10. O-O {[%clk 0:01:32.2]} 10... O-O {[%clk 0:02:53.7]}
11. Qe1 {[%clk 0:01:32.6]} 11... Nd7 {[%clk 0:02:47.8]} 12. Qe3 {[%clk
0:01:32.5]} 12... Bh5 {[%clk 0:02:42.5]} 13. Rfe1 {[%clk 0:01:31.8]} 13... Bg6
{[%clk 0:02:42]} 14. Bxg6 {[%clk 0:01:29.3]} 14... hxg6 {[%clk 0:02:42.9]} 15.
Ne5 {[%clk 0:01:29.2]} 15... Ncxe5 {[%clk 0:02:19.8]} 16. dxe5 {[%clk
0:01:30.1]} 16... Qb6 {[%clk 0:02:19.9]} 17. Qh3 {[%clk 0:01:25.8]} 17... Qxb2
{[%clk 0:02:06.8]} 18. Nf3 {[%clk 0:01:24.7]} 18... Rfc8 {[%clk 0:02:07]} 19.
Ng5 {[%clk 0:01:11.4]} 19... Nf8 {[%clk 0:02:06.7]} 20. Rec1 {[%clk 0:01:07.6]}
20... Rc4 {[%clk 0:02:01.9]} 21. Rab1 {[%clk 0:01:03.7]} 21... Qd2 {[%clk
0:01:45.7]} 22. Nf3 {[%clk 0:00:56.4]} 22... Qf4 {[%clk 0:01:45.6]} 23. Rd1
{[%clk 0:00:48.5]} 23... b6 {[%clk 0:01:40.4]} 24. Rd3 {[%clk 0:00:48]} 24...
Rac8 {[%clk 0:01:37.8]} 25. g3 {[%clk 0:00:45.1]} 25... Qf5 {[%clk 0:01:31.1]}
26. Qf1 {[%clk 0:00:44.9]} 26... Rxc3 {[%clk 0:01:29.4]} 27. Rbd1 {[%clk
0:00:42.7]} 27... Rxd3 {[%clk 0:01:24]} 28. Rxd3 {[%clk 0:00:43.6]} 28... Nd7
{[%clk 0:01:22.5]} 29. Re3 {[%clk 0:00:39.9]} 29... Qc2 {[%clk 0:01:18.4]} 30.
Kg2 {[%clk 0:00:39]} 30... Qxa2 {[%clk 0:01:15.9]} 31. Qb5 {[%clk 0:00:38]}
31... Nc5 {[%clk 0:01:06.6]} 32. h4 {[%clk 0:00:34.1]} 32... Ne4 {[%clk
0:01:03.3]} 33. Re2 {[%clk 0:00:26.7]} 33... Qc4 {[%clk 0:01:01.1]} 34. Qb2
{[%clk 0:00:26.1]} 34... b5 {[%clk 0:00:46.3]} 35. Ne1 {[%clk 0:00:25.4]} 35...
Nc3 {[%clk 0:00:43.8]} 36. Rc2 {[%clk 0:00:15.2]} 36... Qe4+ {[%clk 0:00:38.6]}
37. Nf3 {[%clk 0:00:15]} 37... b4 {[%clk 0:00:35]} 38. Rc1 {[%clk 0:00:10]}
38... a5 {[%clk 0:00:21.1]} 39. Re1 {[%clk 0:00:09.6]} 39... Qc4 {[%clk
0:00:21.4]} 40. h5 {[%clk 0:00:09.5]} 40... gxh5 {[%clk 0:00:20.7]} 41. Qd2
{[%clk 0:00:09.7]} 41... Qg4 {[%clk 0:00:18.9]} 42. Rh1 {[%clk 0:00:08.7]} 42...
Ne4 {[%clk 0:00:18.6]} 43. Qe3 {[%clk 0:00:09]} 43... Rc3 {[%clk 0:00:18.1]} 44.
Qe2 {[%clk 0:00:09.3]} 44... Ng5 {[%clk 0:00:17.7]} 0-1